Cogmind - Beta 11.1 @@@ ROGUE MODE // 2022.05.07 @ 23:39:34 Player: Musaab Result: Destroyed by G-47 Trooper with Particle Gun Performance ------------- Evolutions (2) 1000 Regions Visited (4) 800 Robots Destroyed (45) 225 Value Destroyed (1160) 1160 Prototype IDs (5) 100 Alien Tech Used (0) 0 Bonus (-6) -6 TOTAL SCORE: 3279 Bonus ------- Friendly Fire -6 Cogmind --------- Core Integrity 0/550 Matter 36/300 Energy 100/100 System Corruption 0% Temperature Cool (9) Movement Flying (1640) Ox20 Location -8/Materials Parts ------- > --- POWER (2) -------- (None) > --- PROPULSION (4) --- Flight Unit > --- UTILITY (3) ------ High-capacity Storage Unit High-capacity Storage Unit Advanced Targeting Computer > --- WEAPON (2) ------- Autogun > --- INVENTORY (20) --- Large Storage Unit Large Storage Unit Medium Matter Pod (0) Large Matter Pod (0) Structural Scanner Visual Processing Unit Visual Processing Unit Propulsion Shielding Peak State ------------ > --- POWER ------------ Ion Engine Heavy Ion Engine > --- PROPULSION ------- Light Treads Improved Treads > --- UTILITY ---------- Heat Sink High-capacity Storage Unit Hacking Suite > --- WEAPON ----------- Autogun Mini Grenade Launcher > --- INVENTORY -------- Light Ion Engine Heavy Ion Engine Aluminum Leg Aluminum Leg Aluminum Leg Hover Unit Flight Unit Large Storage Unit Large Storage Unit High-capacity Storage Unit Medium Matter Pod Large Matter Pod Visual Processing Unit Visual Processing Unit Propulsion Shielding EM Pulse Gun Small Laser Autogun Autogun Mini Grenade Launcher [Rating: 18] Favorites ----------- Power Ion Engine Engine Ion Engine Propulsion Light Treads Treads Light Treads Leg Aluminum Leg Hover Unit Improved Hover Unit Flight Unit Flight Unit Utility High-capacity Storage Unit Device Heat Sink Storage High-capacity Storage Unit Processor Advanced Targeting Computer Hackware Hacking Suite Weapon Autogun Energy Gun EM Pulse Gun Ballistic Gun Autogun Launcher Mini Grenade Launcher Special Weapon Welding Torch Build | -11 -10 -10 -9 -8 ------- Run | Scr Mat Min Mat Mat Slots Evolved 4 | . . . 2 2 Power 1 | . . . 1 . Propulsion 2 | . . . . 2 Utility 1 | . . . 1 . Weapon . | . . . . . Parts Attached 45 | 7 8 . 11 19 Power 10 | 2 3 . 3 2 Engine 10 | 2 3 . 3 2 Core . | . . . . . Reactor . | . . . . . Propulsion 13 | 2 . . 5 6 Treads 3 | 2 . . 1 . Leg 8 | . . . 4 4 Wheel . | . . . . . Hover 1 | . . . . 1 Flight 1 | . . . . 1 Utility 11 | 1 3 . 2 5 Device 2 | . . . 2 . Storage 7 | 1 2 . . 4 Processor 1 | . . . . 1 Hackware 1 | . 1 . . . Protection . | . . . . . Artifact . | . . . . . Weapon 11 | 2 2 . 1 6 Energy Gun 3 | 1 . . . 2 Energy Cannon . | . . . . . Ballistic Gun 5 | 1 1 . 1 2 Ballistic Cannon . | . . . . . Launcher 2 | . 1 . . 1 Special Weapon 1 | . . . . 1 Impact Weapon . | . . . . . Slashing Weapon . | . . . . . Piercing Weapon . | . . . . . Special Melee Weapon . | . . . . . Unidentified Prototypes 1 | . 1 . . . Parts Lost 18 | . 1 . . 17 Power 3 | . . . . 3 Propulsion 6 | . . . . 6 Utility 1 | . . . . 1 Weapon 8 | . 1 . . 7 Highest Loss Streak 8 | . 1 . . 8 To Critical Strikes . | . . . . . Average Slot Usage (%) 91 | . 96 100 98 69 Engine 14 | . 13 14 20 4 Treads 17 | . 28 28 17 . Leg 5 | . . . 4 14 Device 5 | . . . 11 2 Storage 13 | . 14 14 11 15 Hackware 9 | . 11 14 11 4 Energy Gun 2 | . 6 . . 2 Ballistic Gun 11 | . 14 14 11 8 Launcher 8 | . 7 14 11 2 Naked Turns . | . . . . . Heaviest Build 73 | 14 49 49 58 73 Greatest Support 43 | 40 40 40 43 40 Greatest Overweight (x) 15 | . 1 1 5 15 Average Overweight (x) 1 | . . 1 1 3 Largest Inventory Capacity 20 | 8 20 20 20 20 Average Capacity 18 | 6 14 20 20 20 Most Carried 20 | 4 20 20 20 19 Average Carried 15 | 2 12 20 19 11 Final Capacity 20 | 8 20 20 20 20 Final Carried 20 | 4 20 20 20 8 Class Distribution -------------------- 93% | Mutant 6% | Scavenger-Mutant Dominant Class ---------------- Mutant | -10/Materials Mutant | -10/Mines Mutant | -9/Materials Mutant | -8/Materials Resources | -11 -10 -10 -9 -8 ----------- Run | Scr Mat Min Mat Mat Matter Collected 937 | 238 124 19 251 305 Remotely . | . . . . . Salvage Created 879 | . 266 34 320 259 Parts 99 | . 31 3 38 27 Haulers Intercepted . | . . . . . Recyclers Shooed . | . . . . . Parts Field Recycled . | . . . . . Retrieved Matter . | . . . . . Parts Self-Destructed . | . . . . . Prevented . | . . . . . Kills | -11 -10 -10 -9 -8 ------- Run | Scr Mat Min Mat Mat Combat Hostiles Destroyed 29 | . 5 3 10 11 Guns 9 | . 3 1 2 3 AOE 20 | . 2 2 8 8 Classes Destroyed 10 | . 5 1 2 2 Worker 1 | . 1 . . . Builder 7 | . 2 . 2 3 Tunneler 1 | . . . 1 . Recycler 1 | . . . 1 . Operator 2 | . 1 . 1 . Watcher 4 | . 3 . 1 . Swarmer 10 | . . 3 4 3 Grunt 17 | . 5 . 6 6 Specialist 1 | . . . . 1 Heavy 1 | . . . . 1 Best Kill Streak 8 | . 8 3 4 6 Combat Bots Only 6 | . 4 3 4 6 Max Kills in Single Turn 2 | . 2 2 2 2 Gunslinging . | . . . . . Exploded 2 | . 1 1 2 2 Melee . | . . . . . Uniques/NPCs Destroyed . | . . . . . Combat | -11 -10 -10 -9 -8 -------- Run | Scr Mat Min Mat Mat Damage Taken 2570 | . 191 56 524 1799 Core 742 | . 39 46 104 553 Absorbed by Shields . | . . . . . Core Remaining (%) 80 | 100 . 66 74 . Volleys Fired 96 | . 21 2 21 52 Largest 2 | . 2 2 2 2 Hottest 96 | . 63 53 53 96 Shots Fired 152 | . 40 4 38 70 Gun 114 | . 35 2 21 56 Cannon . | . . . . . Launcher 35 | . 5 2 17 11 Special 3 | . . . . 3 Kinetic 79 | . 21 2 21 35 Thermal 12 | . . . . 12 Explosive 35 | . 5 2 17 11 Electromagnetic 26 | . 14 . . 12 Robot Hit Streak 14 | . 3 3 8 14 Robot Miss Streak 4 | . 2 1 2 4 Penetration Max . | . . . . . Secondary Targets . | . . . . . Shots Hit Robots 91 | . 21 2 21 47 Core Hits 78 | . 16 3 24 35 Critical Kills 1 | . . . . 1 Critical Parts Destroyed . | . . . . . Critical Strikes 1 | . . . . 1 Destroy 1 | . . . . 1 Melee Attacks . | . . . . . Impact . | . . . . . Slashing . | . . . . . Piercing . | . . . . . Sneak Attacks . | . . . . . Combat Hostiles . | . . . . . Follow-up Attacks . | . . . . . Damage Inflicted 3253 | . 577 105 1062 1509 Guns 942 | . 233 31 168 510 Cannons . | . . . . . Explosions 2304 | . 344 70 894 996 Melee . | . . . . . Ramming 4 | . . 4 . . Kinetic 716 | . 145 31 168 372 Thermal 76 | . . . . 76 Explosive 2304 | . 344 70 894 996 Electromagnetic 153 | . 88 . . 65 Impact . | . . . . . Slashing . | . . . . . Piercing . | . . . . . Highest Corruption . | . . . . . Average Corruption . | . . . . . Corruption Purged . | . . . . . Corruption Blocked . | . . . . . Overload Shots . | . . . . . Overflow Damage 94 | . . . 87 7 Projectiles . | . . . . . Explosions 94 | . . . 87 7 Melee . | . . . . . Knockbacks . | . . . . . Impact . | . . . . . Kinetic . | . . . . . Secondary . | . . . . . Self-Inflicted Damage 479 | . 26 38 284 131 Shots 17 | . 1 1 10 5 Rammed 1 | . . 1 . . Targets Rammed 1 | . . 1 . . Kicked . | . . . . . Crushed . | . . . . . Highest Temperature 381 | . 381 12 . 89 Average Temperature 48 | . 62 9 . 28 Received Heat Transfer 684 | . 96 . 102 486 Effects 2 | . 2 . . . Interference 2 | . 2 . . . Siege Activations . | . . . . . Robots Corrupted . | . . . . . Combat Hostiles . | . . . . . Parts Fried 1 | . . . . 1 Impact Corruptions . | . . . . . Robots Melted . | . . . . . Combat Hostiles . | . . . . . Parts Melted . | . . . . . Heat Transferred 210 | . . . . 210 Parts Sabotaged . | . . . . . Parts Stolen . | . . . . . Parts Stripped . | . . . . . Power Chain Reactions . | . . . . . Missiles Intercepted . | . . . . . Alert | -11 -10 -10 -9 -8 ------- Run | Scr Mat Min Mat Mat Peak Influence 342 | . 307 168 342 341 Initial 144 | . . 41 65 144 Average 156 | . 125 167 150 216 Maximum Alert Level 1 | . 1 . 1 1 Low Security (%) 73 | 100 72 100 80 48 Level 1 26 | . 27 . 20 51 Level 2 . | . . . . . Level 3 . | . . . . . Level 4 . | . . . . . Level 5 . | . . . . . High Security . | . . . . . Max Security . | . . . . . Squads Dispatched 7 | . 1 . 2 4 Investigation . | . . . . . Extermination . | . . . . . Reinforcement 7 | . 1 . 2 4 Assault . | . . . . . Garrison . | . . . . . Intercept . | . . . . . Searches Triggered . | . . . . . Construction Impeded 2 | . . . . 2 Haulers Reinforced . | . . . . . Active Scanning Responses . | . . . . . Cargo Convoy Interrupts . | . . . . . Stealth | -11 -10 -10 -9 -8 --------- Run | Scr Mat Min Mat Mat Distress Signals 5 | . 4 . 1 . Communications Jammed . | . . . . . Distress Signals . | . . . . . Times Spotted 41 | . 10 2 13 16 Peak Tracking Total 7 | . 5 2 4 7 Tactical Retreats 1 | . 1 . . . Traps | -11 -10 -10 -9 -8 ------- Run | Scr Mat Min Mat Mat Traps Triggered 1 | . . . 1 . Indirectly . | . . . . . Trap Hack Attempts . | . . . . . Triggered . | . . . . . Disarmed . | . . . . . Reprogrammed . | . . . . . Reused . | . . . . . Traps Extracted . | . . . . . Installed . | . . . . . Triggered . | . . . . . Machines | -11 -10 -10 -9 -8 ---------- Run | Scr Mat Min Mat Mat Machines Disabled 11 | . 2 . 7 2 Max in Single Turn 1 | . 1 . 1 1 Machines Sabotaged . | . . . . . Garrisons Compromised . | . . . . . Overloaded Fab Kills . | . . . . . Hacking | -11 -10 -10 -9 -8 --------- Run | Scr Mat Min Mat Mat Machines Accessed 4 | . 1 . 1 2 Terminals 4 | . 1 . 1 2 Fabricators . | . . . . . Repair Stations . | . . . . . Recycling Units . | . . . . . Scanalyzers . | . . . . . Garrison Access . | . . . . . Total Hacks 21 | . 4 . 9 8 Successful 17 | . 3 . 6 8 Failed 4 | . 1 . 3 . Catastrophic . | . . . . . Database Lockouts . | . . . . . Manual . | . . . . . Terminals 21 | . 4 . 9 8 Fabricators . | . . . . . Repair Stations . | . . . . . Recycling Units . | . . . . . Scanalyzers . | . . . . . Garrison Access . | . . . . . Terminal Hacks 17 | . 3 . 6 8 Record 3 | . 1 . . 2 Prototype ID Bank 2 | . . . 1 1 Branch Access Points 1 | . 1 . . . Emergency Access Points 1 | . . . 1 . Alert Level 5 | . . . 3 2 Patrol Status 1 | . 1 . . . Transport Status 1 | . . . . 1 Reinforcement Status 1 | . . . 1 . Hauler Manifests 1 | . . . . 1 Zone Layout 1 | . . . . 1 Fabricator Hacks . | . . . . . Repair Station Hacks . | . . . . . Recycling Unit Hacks . | . . . . . Scanalyzer . | . . . . . Garrison Access Hacks . | . . . . . Unauthorized Hacks . | . . . . . Terminals . | . . . . . Fabricators . | . . . . . Repair Stations . | . . . . . Recycling Units . | . . . . . Scanalyzers . | . . . . . Garrison Access . | . . . . . Data Cores Recovered . | . . . . . Used . | . . . . . Hacking Detections 4 | . 1 . 1 2 Full Trace Events . | . . . . . Feedback Events . | . . . . . Feedback Blocked . | . . . . . Robot Schematics Acquired . | . . . . . Robots Built . | . . . . . Authchips . | . . . . . Time . | . . . . . Total Robot Build Rating . | . . . . . Part Schematics Acquired . | . . . . . Parts Built . | . . . . . Authchips . | . . . . . Time . | . . . . . Total Part Build Rating . | . . . . . Parts Repaired . | . . . . . Time . | . . . . . Parts Recycled . | . . . . . Recycled Matter . | . . . . . Retrieved Matter . | . . . . . Retrieved Components . | . . . . . Parts Scanalyzed . | . . . . . Part Schematics Acquired . | . . . . . Parts Damaged . | . . . . . Bothacking | -11 -10 -10 -9 -8 ------------ Run | Scr Mat Min Mat Mat Used RIF Installer . | . . . . . Robots Hacked . | . . . . . Non-combat . | . . . . . Combat . | . . . . . Robot Hacks Applied . | . . . . . Relay Couplers Released . | . . . . . Fabnet Peak Effective % . | . . . . . Robots Rewired . | . . . . . Allies Hacked . | . . . . . Hacks Repelled . | . . . . . Allies | -11 -10 -10 -9 -8 -------- Run | Scr Mat Min Mat Mat Total Allies . | . . . . . Largest Group . | . . . . . Highest-Rated Group . | . . . . . Highest-Rated Ally . | . . . . . Total Orders . | . . . . . Ally Attacks . | . . . . . Total Damage . | . . . . . Kills . | . . . . . Allies Corrupted . | . . . . . Allies Melted . | . . . . . Intel | -11 -10 -10 -9 -8 ------- Run | Scr Mat Min Mat Mat Robot Analysis Total . | . . . . . Derelict Logs Recovered . | . . . . . Drone Launches . | . . . . . Drone Recoveries . | . . . . . Exploration | -11 -10 -10 -9 -8 ------------- Run | Scr Mat Min Mat Mat Turns Passed 2344 | 67 549 244 970 514 Spaces Moved 829 | 38 231 99 364 97 Core 6 | 6 . . . . Treads 663 | 32 231 99 301 . Legs 145 | . . . 63 82 Wheels . | . . . . . Hover . | . . . . . Flight 15 | . . . . 15 Fastest Speed 50 | 50 160 240 240 190 Average Speed 242 | 142 198 240 245 381 Slowest Speed 1240 | 160 240 240 470 1240 Overloaded Moves . | . . . . . Propulsion Burnouts . | . . . . . Robots Hopped . | . . . . . Cave-ins Triggered . | . . . . . Exploration Rate (%) 22 | 3 36 27 40 8 Regions Visited 4 Branch Regions 1 Pre-discovered Areas . | . . . . . Known Exits Taken 1 | . 1 . . . Unknown Exits Taken 3 | 1 . 1 1 . Scrap Searched . | . . . . . Spaces Dug . | . . . . . Terrain Destroyed 179 | . 22 24 87 46 Melee . | . . . . . Projectile . | . . . . . AOE 179 | . 22 24 87 46 Terrain Rammed . | . . . . . Walls Destroyed . | . . . . . Machines Disabled . | . . . . . Actions | -11 -10 -10 -9 -8 --------- Run | Scr Mat Min Mat Mat Total 1030 | 47 289 103 417 174 Wait 10 | . 7 . . 3 Move 825 | 37 230 98 363 97 Hop . | . . . . . Pick Up 31 | 3 17 1 8 2 Fast Attach 15 | 6 4 . 3 2 Attach 17 | . 1 . 2 14 Detach 1 | . . . . 1 Swap 13 | 1 3 . 6 3 Drop 21 | . 6 1 14 . Fire 96 | . 21 2 21 52 Melee . | . . . . . Ram . | . . . . . Kick . | . . . . . Crush 1 | . . 1 . . Escape Stasis . | . . . . . Rewire . | . . . . . Trap . | . . . . . Miscellaneous . | . . . . . Route ------- -11/Scrapyard -10/Materials (discovered 2 exits: *Min x2) -10/Mines -9/Materials -8/Materials History --------- Turn | Location | Event 12 | -11/Scrapyard | Discovered new exit (range 14) 68 | -11/Scrapyard | Entered Materials 311 | -10/Materials | Identified exit to Mines 328 | -10/Materials | Build established: Mutant 617 | -10/Materials | Entered Mines 643 | -10/Mines | YI-UF0 nonchalantly dropped a Grenade Launcher on the ground 844 | -10/Mines | Discovered new exit (range 8) 861 | -10/Mines | Entered Materials 861 | -9/Materials | Evolved 2 slots: Power x1, Utility x1 1798 | -9/Materials | Discovered new exit (range 12) 1831 | -9/Materials | Entered another Materials area 1831 | -8/Materials | Evolved 2 slots: Propulsion x2 2008 | -8/Materials | Lost 8 parts (2p2n1u3w) 2075 | -8/Materials | Core integrity fell below 50% 2100 | -8/Materials | Core integrity fell below 20% 2132 | -8/Materials | Lost 7 parts (1p3n3w) 2345 | -8/Materials | Destroyed by G-47 Trooper with Particle Gun Last Messages --------------- 02160_ R-06 Scavenger collects Wheel. 02160_ U-05 Engineer lays Concrete. 02163_ U-05 Engineer builds a Wall. 02165_ R-06 Scavenger collects Wheel. 02167_ U-05 Engineer lays Concrete. 02168_ R-06 Scavenger collects Lgt. Ion Engine. 02170_ U-05 Engineer builds a Wall. 02174_ U-05 Engineer lays Concrete. 02178_ U-05 Engineer suffers critical hit (Destroy). 02178_ U-05 Engineer destroyed. 02192_ Acquired Structural Scanner. 02206_ Acquired Welding Torch. 02214_ R-06 Scavenger collects Terrain Scan Processor. 02218_ R-06 Scavenger collects Wheel. 02220_ Acquired 14 matter. 02257_ Acquired 13 matter. 02260_ K-01 Serf collects debris. 02317_ Welding Torch destroyed. 02331_ G-47 Trooper destroyed. 02341_ Imp. Hover Unit destroyed. Map ----- +----------------------------------------------------+ | | | | | | | | | | | | | | | | | | | | | | | | | | | | | ?????????????????????????????????????????????????? | | ?????????????##########??????????????????????????? | | ?????????????# #######????????????????????? | | ?????????????# """ ## #####????????????????? | | ?????????????# """ # #????????????????? | | ??????######## """!# ! #????????????????? | | ??????# # # #????????????????? | | ??????# """# # " #????????????????? | | ??????# """# "T"=# " " ##???????????????? | | ??????# """# "" # ##??????????????? | | ??????# # # ##??????????????? | | ??????# #####+#### @* # # #????????????? | | ??????######+### #####g##########????????????? | | ???????#" %g % ??????? | | ???????## ######### ????????? | | ????????# ## ## #????????????? | | ????????#######" #### # ##????????????? | | ??????????????########??# # #?????????????? | | ????????????????????????# # """#?????????????? | | ????????????????????????# + """??????????????? | | ????????????????????????# # """??????????????? | | ????????????????????????# # ??????????????? | | ????????????????????????# #######??????????????? | | ????????????????????????# # ???????????????? | | ????????????????????????# # """ ???????????????? | | ????????????????????????# # """ ???????????????? | | ????????????????????????# + """ ???????????????? | | ????????????????????????# # ???????????????? | | ????????????????????????# # ???????????????? | | ????????????????????????# ######???????????????? | | ?????????????????????????????????????????????????? | | ?????????????????????????????????????????????????? | | ?????????????????????????????????????????????????? | | ?????????????????????????????????????????????????? | | ?????????????????????????????????????????????????? | | ?????????????????????????????????????????????????? | +----------------------------------------------------+ Best States ------------- Heat Dissipation 41 Energy Generation 19 Energy Capacity 430 Matter Stores 294 Matter Capacity 300 Sight Range 16 Terrain Scan Density 10 Evasion (%) 40 Targeting Accuracy 8 Recoil Reduction 2 Offensive Hacking 10 Item Schematics ----------------- None Robot Schematics ------------------ None Fabricated ------------ Nothing Alien Tech Used ----------------- None Achievements -------------- None Challenges ------------ None Game ------ Seed GrenadeAssemblyPlating Manual? 0 Play Time 00:18:58 Cumulative 17.0 hours Start 2022.05.07 @ 23:18:30 End 2022.05.07 @ 23:39:34 Sessions 1 Manual Loads 0 Difficulty Rogue Special Mode None Game No. 42 Rogue 42 Adventurer 0 Explorer 0 Win Type - Total 0 Types 0/0/0/0/0/0/0/0/0 Lore% 6 Gallery% 21 Achievement% 15 Wizard Run 0 Options --------- ASCII 0 Keyboard 0 Movement Numpad Keybinds 0 Fullscreen 1 Font 24/Smallcaps Map View 113x50 Tactical HUD 1 Map Filters NONE Filters NONE Steam 1 RUN: 399db9a3-b31d-465b-9c84-4f84da37ecec